[Event "Biel DQA Blitzn"]
[Site "Biel/Bienne, Switzerland"]
[Date "2022.07.17"]
[Round "6.4"]
[White "Tamrazyan, Gohar"]
[Black "Zhuang, Yongzhe"]
[Result "0-1"]
[TimeControl "3 min + 2 sec"]
[WhiteElo "1733"]
[BlackElo "1681"]

1. d4 {[%clk 00:03:03]} d5 {[%clk 00:03:03]} {[%emt 00:00:02]} 2. Nc3 {[%clk
00:03:04]} Nf6 {[%clk 00:03:02]} {[%emt 00:00:03]} 3. Bf4 {[%clk 00:03:05]}
{[%emt 00:00:01]} c5 {[%clk 00:03:01]} {[%emt 00:00:03]} 4. e4 {[%clk
00:03:05]} {[%emt 00:00:02]} Nxe4 {[%clk 00:02:44]} {[%emt 00:00:19]} 5. Nxe4
{[%clk 00:03:06]} {[%emt 00:00:01]} dxe4 {[%emt 00:00:02]} 6. dxc5 Qa5+ {[%clk
00:02:39]} {[%emt 00:00:07]} 7. c3 {[%clk 00:03:09]} {[%emt 00:00:01]} Qxc5
{[%clk 00:02:26]} {[%emt 00:00:15]} 8. Qa4+ {[%clk 00:03:10]} Nc6 {[%clk
00:02:20]} {[%emt 00:00:08]} 9. Qxe4 {[%clk 00:03:10]} {[%emt 00:00:02]} Bf5
{[%clk 00:02:13]} {[%emt 00:00:09]} 10. Qa4 {[%clk 00:03:12]} e5 {[%clk
00:02:10]} {[%emt 00:00:05]} 11. Be3 {[%clk 00:02:39]} {[%emt 00:00:35]} Qa5
{[%clk 00:02:04]} {[%emt 00:00:08]} 12. Qxa5 {[%clk 00:02:34]} {[%emt
00:00:07]} Nxa5 {[%clk 00:02:05]} {[%emt 00:00:01]} 13. O-O-O {[%clk 00:02:26]}
{[%emt 00:00:10]} Be7 {[%clk 00:01:57]} {[%emt 00:00:09]} 14. Nf3 {[%clk
00:02:22]} {[%emt 00:00:07]} f6 {[%clk 00:01:57]} {[%emt 00:00:02]} 15. Bb5+
{[%clk 00:02:10]} {[%emt 00:00:14]} Nc6 {[%clk 00:01:55]} {[%emt 00:00:03]} 16.
Rd2 {[%clk 00:01:59]} {[%emt 00:00:13]} O-O {[%clk 00:01:48]} {[%emt 00:00:09]}
17. Rhd1 {[%clk 00:02:01]} a6 {[%clk 00:01:47]} {[%emt 00:00:04]} 18. Bc4+
{[%clk 00:01:55]} {[%emt 00:00:07]} Kh8 {[%clk 00:01:47]} 19. Nh4 {[%clk
00:01:47]} {[%emt 00:00:10]} Bc8 {[%clk 00:01:33]} {[%emt 00:00:17]} 20. f4
{[%clk 00:01:24]} {[%emt 00:00:25]} exf4 {[%clk 00:01:20]} {[%emt 00:00:14]} 21.
Bxf4 {[%clk 00:01:25]} g5 {[%clk 00:01:15]} {[%emt 00:00:08]} 22. Bxg5 {[%clk
00:00:45]} {[%emt 00:00:42]} fxg5 {[%clk 00:01:15]} {[%emt 00:00:01]} 23. Nf3
{[%clk 00:00:46]} {[%emt 00:00:02]} Bg4 {[%clk 00:01:10]} {[%emt 00:00:08]} 24.
Bd5 {[%clk 00:00:41]} {[%emt 00:00:07]} Bc5 {[%clk 00:01:03]} {[%emt 00:00:09]}
25. Kb1 {[%clk 00:00:40]} {[%emt 00:00:03]} Be3 {[%clk 00:00:35]} {[%emt
00:00:30]} 26. Rd3 {[%clk 00:00:39]} {[%emt 00:00:03]} Bf5 {[%clk 00:00:35]}
{[%emt 00:00:01]} 27. Kc2 {[%clk 00:00:29]} {[%emt 00:00:12]} Bxd3+ {[%clk
00:00:35]} {[%emt 00:00:02]} 28. Rxd3 {[%clk 00:00:30]} Bc5 {[%clk 00:00:32]}
{[%emt 00:00:06]} 29. Nxg5 {[%clk 00:00:28]} {[%emt 00:00:05]} Rf2+ {[%clk
00:00:29]} {[%emt 00:00:04]} 30. Rd2 {[%clk 00:00:22]} {[%emt 00:00:09]} Rxd2+
{[%clk 00:00:25]} {[%emt 00:00:06]} 31. Kxd2 {[%clk 00:00:23]} {[%emt
00:00:01]} Ne5 {[%clk 00:00:18]} {[%emt 00:00:08]} 32. b4 {[%clk 00:00:20]}
{[%emt 00:00:06]} Ba7 {[%clk 00:00:18]} {[%emt 00:00:01]} 33. Kc2 {[%clk
00:00:15]} {[%emt 00:00:07]} Kg7 {[%clk 00:00:16]} {[%emt 00:00:03]} 34. Ne6+
{[%clk 00:00:16]} {[%emt 00:00:02]} Kf6 {[%clk 00:00:16]} {[%emt 00:00:02]} 35.
c4 {[%clk 00:00:15]} {[%emt 00:00:04]} Rc8 {[%clk 00:00:14]} {[%emt 00:00:02]}
36. h3 {[%clk 00:00:13]} {[%emt 00:00:05]} Nxc4 {[%clk 00:00:13]} {[%emt
00:00:02]} 37. Kb3 {[%clk 00:00:12]} {[%emt 00:00:03]} Nd2+ {[%clk 00:00:13]}
{[%emt 00:00:03]} 38. Ka3 {[%clk 00:00:13]} {[%emt 00:00:02]} Rc3+ {[%clk
00:00:12]} {[%emt 00:00:02]} 39. Kb2 {[%clk 00:00:15]} {[%emt 00:00:01]} Rc8
{[%clk 00:00:12]} {[%emt 00:00:02]} 40. Bb3 {[%clk 00:00:12]} {[%emt 00:00:05]}
Nxb3 {[%clk 00:00:13]} {[%emt 00:00:02]} 0-1

[ePGN "0.1;DGT LiveChess/2.2.5"]

[Event "Biel DQA Blitzn"]
[Site "Biel/Bienne, Switzerland"]
[Date "2022.07.17"]
[Round "7.1"]
[White "Cornileau, Juliette"]
[Black "Tamrazyan, Gohar"]
[Result "0-1"]
[TimeControl "3 min + 2 sec"]
[WhiteElo "1653"]
[BlackElo "1733"]

1. d4 {[%emt 00:00:01]} d5 2. c4 {[%clk 00:03:03]} {[%emt 00:00:01]} e6 {[%clk
00:03:06]} 3. Nc3 {[%clk 00:03:04]} {[%emt 00:00:02]} c5 {[%clk 00:03:07]} 4.
cxd5 {[%clk 00:03:02]} {[%emt 00:00:05]} exd5 {[%clk 00:03:08]} 5. Nf3 {[%clk
00:03:02]} Nc6 {[%clk 00:03:10]} 6. g3 {[%clk 00:03:03]} {[%emt 00:00:02]} Nf6
{[%clk 00:03:11]} {[%emt 00:00:01]} 7. Bg2 {[%clk 00:03:01]} {[%emt 00:00:03]}
Be7 {[%clk 00:03:12]} {[%emt 00:00:01]} 8. O-O {[%clk 00:03:02]} {[%emt
00:00:02]} O-O {[%clk 00:03:13]} {[%emt 00:00:01]} 9. Bg5 {[%clk 00:02:57]}
{[%emt 00:00:06]} c4 {[%clk 00:03:13]} {[%emt 00:00:02]} 10. Ne5 {[%clk
00:02:50]} {[%emt 00:00:08]} Be6 {[%clk 00:03:14]} 11. Nxc6 {[%clk 00:02:24]}
{[%emt 00:00:29]} bxc6 {[%clk 00:03:15]} {[%emt 00:00:01]} 12. Qc2 {[%clk
00:02:10]} {[%emt 00:00:15]} Qb6 {[%clk 00:02:54]} {[%emt 00:00:23]} 13. Rad1
{[%clk 00:02:03]} {[%emt 00:00:09]} Rad8 {[%clk 00:02:38]} {[%emt 00:00:18]} 14.
Na4 {[%clk 00:01:58]} {[%emt 00:00:07]} Qa5 {[%clk 00:02:28]} {[%emt 00:00:12]}
15. b3 {[%clk 00:01:51]} {[%emt 00:00:08]} cxb3 {[%clk 00:01:47]} {[%emt
00:00:44]} 16. axb3 {[%clk 00:01:49]} {[%emt 00:00:04]} Qc7 {[%clk 00:01:36]}
{[%emt 00:00:13]} 17. Bf4 {[%clk 00:01:38]} {[%emt 00:00:13]} Bd6 {[%clk
00:01:36]} {[%emt 00:00:03]} 18. Bxd6 {[%clk 00:01:39]} {[%emt 00:00:01]} Qxd6
{[%clk 00:01:34]} {[%emt 00:00:04]} 19. Rc1 {[%clk 00:01:27]} {[%emt 00:00:13]}
Bd7 {[%clk 00:01:26]} {[%emt 00:00:10]} 20. Nc5 {[%clk 00:01:26]} {[%emt
00:00:03]} Rc8 {[%clk 00:01:14]} {[%emt 00:00:14]} 21. Ra1 {[%clk 00:01:21]}
{[%emt 00:00:07]} Rc7 {[%clk 00:01:10]} {[%emt 00:00:07]} 22. Ra5 {[%clk
00:01:07]} {[%emt 00:00:15]} Ra8 {[%clk 00:00:53]} {[%emt 00:00:19]} 23. Rfa1
{[%clk 00:01:03]} {[%emt 00:00:06]} Be8 {[%clk 00:00:54]} {[%emt 00:00:01]} 24.
Bh3 {[%clk 00:00:56]} {[%emt 00:00:08]} Nd7 {[%clk 00:00:47]} {[%emt 00:00:09]}
25. Bxd7 {[%clk 00:00:49]} {[%emt 00:00:09]} Bxd7 {[%clk 00:00:47]} {[%emt
00:00:02]} 26. Kg2 {[%clk 00:00:39]} {[%emt 00:00:13]} Qf6 {[%clk 00:00:44]}
{[%emt 00:00:05]} 27. Nxd7 {[%clk 00:00:38]} {[%emt 00:00:03]} Rxd7 {[%clk
00:00:45]} {[%emt 00:00:01]} 28. Ra6 {[%clk 00:00:36]} {[%emt 00:00:03]} Qxd4
{[%clk 00:00:34]} {[%emt 00:00:13]} 29. Qxc6 {[%clk 00:00:25]} {[%emt
00:00:13]} Rdd8 {[%clk 00:00:28]} {[%emt 00:00:08]} 30. Rc1 {[%clk 00:00:24]}
{[%emt 00:00:03]} Qe4+ {[%clk 00:00:26]} {[%emt 00:00:04]} 31. Kg1 {[%clk
00:00:18]} {[%emt 00:00:07]} h6 {[%clk 00:00:25]} {[%emt 00:00:04]} 32. Qb7
{[%clk 00:00:11]} {[%emt 00:00:08]} Qxe2 {[%clk 00:00:21]} {[%emt 00:00:06]} 33.
Rxa7 {[%clk 00:00:10]} {[%emt 00:00:03]} Rxa7 {[%clk 00:00:20]} {[%emt
00:00:04]} 34. Qxa7 {[%clk 00:00:11]} Qb2 {[%clk 00:00:18]} {[%emt 00:00:03]}
35. Qc7 {[%clk 00:00:04]} {[%emt 00:00:09]} Rf8 {[%clk 00:00:17]} {[%emt
00:00:03]} 36. Qc2 {[%clk 00:00:04]} {[%emt 00:00:02]} Qxc2 {[%clk 00:00:14]}
{[%emt 00:00:06]} 37. Rxc2 {[%clk 00:00:05]} Rb8 {[%clk 00:00:14]} {[%emt
00:00:02]} 38. Rd2 {[%clk 00:00:06]} Rb5 {[%clk 00:00:15]} {[%emt 00:00:01]} 39.
Rd3 {[%clk 00:00:07]} {[%emt 00:00:01]} Kf8 {[%emt 00:00:02]} 40. Kg2 Ke7
{[%clk 00:00:17]} 41. Kf3 {[%emt 00:00:02]} Ke6 42. Re3+ {[%clk 00:00:05]}
{[%emt 00:00:06]} Kd6 {[%clk 00:00:19]} {[%emt 00:00:02]} 43. Rd3 {[%clk
00:00:07]} Ke5 {[%clk 00:00:19]} {[%emt 00:00:02]} 44. Ke3 {[%clk 00:00:07]}
{[%emt 00:00:01]} d4+ {[%clk 00:00:16]} {[%emt 00:00:05]} 45. Ke2 {[%clk
00:00:05]} {[%emt 00:00:05]} g5 {[%clk 00:00:14]} {[%emt 00:00:04]} 46. h3
{[%clk 00:00:04]} {[%emt 00:00:02]} f5 {[%clk 00:00:14]} {[%emt 00:00:02]} 47.
Kf3 {[%clk 00:00:03]} {[%emt 00:00:03]} h5 {[%clk 00:00:14]} {[%emt 00:00:02]}
48. h4 {[%clk 00:00:04]} {[%emt 00:00:02]} g4+ {[%clk 00:00:14]} {[%emt
00:00:02]} 49. Ke2 {[%clk 00:00:04]} {[%emt 00:00:01]} Ke4 {[%clk 00:00:14]}
{[%emt 00:00:02]} 50. Kd2 {[%clk 00:00:05]} {[%emt 00:00:01]} f4 {[%clk
00:00:13]} {[%emt 00:00:03]} 51. gxf4 {[%clk 00:00:06]} {[%emt 00:00:02]} Rb4
{[%clk 00:00:10]} {[%emt 00:00:04]} 52. Ke2 {[%clk 00:00:03]} {[%emt 00:00:05]}
Kxf4 {[%clk 00:00:11]} 53. Kd2 {[%clk 00:00:04]} {[%emt 00:00:01]} Ke4 {[%clk
00:00:11]} {[%emt 00:00:02]} 54. Rg3 {[%clk 00:00:05]} {[%emt 00:00:01]} Rb6
{[%clk 00:00:11]} {[%emt 00:00:02]} 55. Kc2 {[%clk 00:00:05]} {[%emt 00:00:01]}
Rf6 {[%clk 00:00:11]} {[%emt 00:00:02]} 56. Rg2 {[%clk 00:00:06]} {[%emt
00:00:02]} Kf3 {[%clk 00:00:12]} {[%emt 00:00:02]} 57. Rg3+ {[%clk 00:00:07]}
Kxf2 {[%clk 00:00:13]} 58. Rd3 {[%clk 00:00:08]} Rd6 {[%clk 00:00:14]} {[%emt
00:00:02]} 59. b4 {[%clk 00:00:09]} {[%emt 00:00:01]} g3 {[%clk 00:00:12]}
{[%emt 00:00:03]} 60. Rd2 {[%clk 00:00:08]} {[%emt 00:00:04]} Kf1 {[%clk
00:00:12]} {[%emt 00:00:03]} 61. Rd1+ {[%clk 00:00:08]} {[%emt 00:00:02]} Kf2
{[%clk 00:00:12]} {[%emt 00:00:02]} 62. Rd2 {[%clk 00:00:09]} Kg1 {[%clk
00:00:12]} {[%emt 00:00:02]} 63. Rd1+ {[%clk 00:00:10]} {[%emt 00:00:01]} Kh2
{[%clk 00:00:13]} 64. Rd2 {[%clk 00:00:06]} {[%emt 00:00:06]} g2 {[%clk
00:00:14]} 65. Kd1 {[%clk 00:00:07]} {[%emt 00:00:02]} Kh1 {[%clk 00:00:14]}
{[%emt 00:00:02]} 0-1

[Event "Biel DQA Blitzn"]
[Site "Biel/Bienne, Switzerland"]
[Date "2022.07.17"]
[Round "7.2"]
[White "Zhuang, Yongzhe"]
[Black "Ciarletta, Iris"]
[Result "0-1"]
[TimeControl "3 min + 2 sec"]
[WhiteElo "1681"]
[BlackElo "1481"]

1. e4 {[%clk 00:03:02]} {[%emt 00:00:01]} c5 {[%clk 00:03:04]} {[%emt
00:00:01]} 2. c3 {[%clk 00:03:03]} Nf6 {[%clk 00:03:05]} {[%emt 00:00:01]} 3.
e5 {[%clk 00:03:04]} Nd5 {[%clk 00:03:06]} {[%emt 00:00:01]} 4. d4 {[%clk
00:03:05]} e6 {[%clk 00:03:04]} {[%emt 00:00:04]} 5. Nf3 {[%clk 00:03:05]}
{[%emt 00:00:02]} Nc6 {[%clk 00:03:04]} {[%emt 00:00:02]} 6. Bc4 {[%clk
00:03:00]} {[%emt 00:00:07]} Nb6 {[%clk 00:03:05]} {[%emt 00:00:01]} 7. Bb3
{[%clk 00:02:57]} {[%emt 00:00:04]} d5 {[%clk 00:03:04]} {[%emt 00:00:03]} 8.
exd6 {[%clk 00:02:54]} {[%emt 00:00:05]} cxd4 {[%clk 00:03:02]} {[%emt
00:00:05]} 9. cxd4 {[%clk 00:02:53]} {[%emt 00:00:02]} Bxd6 {[%clk 00:03:01]}
{[%emt 00:00:02]} 10. Nc3 {[%clk 00:02:53]} {[%emt 00:00:03]} Be7 {[%clk
00:02:54]} {[%emt 00:00:09]} 11. O-O {[%clk 00:02:52]} {[%emt 00:00:03]} O-O
{[%clk 00:02:54]} {[%emt 00:00:02]} 12. Qd3 {[%clk 00:02:47]} {[%emt 00:00:07]}
Nb4 {[%clk 00:02:48]} {[%emt 00:00:08]} 13. Qe2 {[%clk 00:02:45]} {[%emt
00:00:04]} Bf6 {[%clk 00:02:47]} {[%emt 00:00:03]} 14. a3 {[%clk 00:02:37]}
{[%emt 00:00:09]} N4d5 {[%clk 00:02:46]} {[%emt 00:00:04]} 15. Bd2 {[%clk
00:02:33]} {[%emt 00:00:06]} a6 {[%clk 00:02:35]} {[%emt 00:00:13]} 16. Rad1
{[%clk 00:02:32]} {[%emt 00:00:02]} Re8 {[%clk 00:02:35]} {[%emt 00:00:03]} 17.
Rfe1 {[%clk 00:02:33]} {[%emt 00:00:02]} Nxc3 {[%clk 00:02:28]} {[%emt
00:00:09]} 18. bxc3 {[%clk 00:02:26]} {[%emt 00:00:09]} Bd7 {[%clk 00:02:28]}
{[%emt 00:00:02]} 19. Bc2 {[%clk 00:02:17]} {[%emt 00:00:11]} Rc8 {[%clk
00:02:24]} {[%emt 00:00:06]} 20. Ne5 {[%clk 00:02:14]} {[%emt 00:00:05]} Bxe5
{[%clk 00:02:12]} {[%emt 00:00:14]} 21. Qxe5 {[%clk 00:02:14]} {[%emt
00:00:02]} Qf6 {[%clk 00:02:09]} {[%emt 00:00:05]} 22. Qe4 {[%clk 00:02:12]}
{[%emt 00:00:03]} g6 {[%clk 00:02:03]} {[%emt 00:00:09]} 23. Qxb7 {[%clk
00:02:02]} {[%emt 00:00:12]} a5 {[%clk 00:01:54]} {[%emt 00:00:11]} 24. Qxb6
{[%clk 00:01:48]} {[%emt 00:00:15]} Bc6 {[%clk 00:01:49]} {[%emt 00:00:07]} 25.
Be4 {[%clk 00:01:35]} {[%emt 00:00:16]} Bxe4 {[%clk 00:01:42]} {[%emt
00:00:09]} 26. Rxe4 {[%clk 00:01:35]} {[%emt 00:00:02]} Qf5 {[%clk 00:01:43]}
27. Rde1 {[%clk 00:01:24]} {[%emt 00:00:12]} Rb8 {[%clk 00:01:40]} {[%emt
00:00:05]} 28. Qc6 {[%clk 00:01:14]} {[%emt 00:00:12]} Rec8 {[%clk 00:01:39]}
{[%emt 00:00:03]} 29. Qa4 {[%clk 00:01:01]} {[%emt 00:00:15]} h5 {[%clk
00:01:34]} {[%emt 00:00:07]} 30. Re5 {[%clk 00:01:00]} {[%emt 00:00:02]} Qd3
{[%clk 00:01:35]} {[%emt 00:00:01]} 31. Qd1 {[%clk 00:00:50]} {[%emt 00:00:12]}
Qa6 {[%clk 00:01:27]} {[%emt 00:00:10]} 32. h3 {[%clk 00:00:48]} {[%emt
00:00:04]} Rb2 {[%clk 00:01:26]} {[%emt 00:00:03]} 33. Bc1 {[%clk 00:00:45]}
{[%emt 00:00:04]} Rb1 {[%clk 00:01:25]} {[%emt 00:00:04]} 34. Qc2 {[%clk
00:00:44]} {[%emt 00:00:02]} Rcb8 {[%clk 00:01:25]} {[%emt 00:00:02]} 35. Bf4
{[%clk 00:00:39]} {[%emt 00:00:07]} R1b2 {[%clk 00:01:18]} {[%emt 00:00:09]} 36.
Qe4 {[%clk 00:00:37]} {[%emt 00:00:04]} Ra2 {[%clk 00:01:09]} {[%emt 00:00:12]}
37. d5 {[%clk 00:00:23]} {[%emt 00:00:16]} exd5 {[%clk 00:00:55]} {[%emt
00:00:16]} 38. Re8+ {[%clk 00:00:22]} {[%emt 00:00:03]} Rxe8 39. Qxe8+ {[%clk
00:00:22]} Kg7 {[%clk 00:00:48]} {[%emt 00:00:02]} 40. Be5+ {[%clk 00:00:22]}
{[%emt 00:00:02]} Kh6 {[%clk 00:00:48]} {[%emt 00:00:02]} 41. Qh8+ {[%clk
00:00:21]} {[%emt 00:00:03]} Kg5 {[%clk 00:00:48]} {[%emt 00:00:02]} 42. f4+
{[%clk 00:00:20]} {[%emt 00:00:03]} Kf5 {[%clk 00:00:48]} {[%emt 00:00:03]} 43.
g4+ {[%clk 00:00:19]} {[%emt 00:00:03]} hxg4 {[%clk 00:00:48]} {[%emt
00:00:02]} 44. hxg4+ {[%clk 00:00:19]} {[%emt 00:00:01]} Kxg4 {[%clk 00:00:48]}
{[%emt 00:00:03]} 45. Qf6 {[%clk 00:00:14]} {[%emt 00:00:05]} Qa7+ {[%clk
00:00:48]} {[%emt 00:00:04]} 46. Kh1 {[%clk 00:00:14]} {[%emt 00:00:02]} Qf2
{[%clk 00:00:40]} {[%emt 00:00:10]} 47. Rg1+ {[%clk 00:00:10]} {[%emt
00:00:06]} Kf3 {[%clk 00:00:37]} {[%emt 00:00:05]} 48. Qh4 {[%clk 00:00:00]}
{[%emt 00:00:10]} Qxh4# {[%emt 00:00:02]} 0-1

[Event "Biel DQA Blitzn"]
[Site "Biel/Bienne, Switzerland"]
[Date "2022.07.17"]
[Round "7.3"]
[White "Avilova, Yulia"]
[Black "Moracchini, Margaux"]
[Result "1-0"]
[TimeControl "3 min + 2 sec"]
[WhiteElo "1597"]
[BlackElo "1825"]

1. Nf3 {[%clk 00:03:03]} {[%emt 00:07:15]} Nf6 {[%clk 00:03:03]} {[%emt
00:00:02]} 2. c4 {[%clk 00:03:03]} {[%emt 00:00:02]} g6 {[%clk 00:03:04]}
{[%emt 00:00:02]} 3. d4 {[%clk 00:03:05]} d6 {[%clk 00:03:05]} {[%emt
00:00:01]} 4. Nc3 {[%clk 00:03:06]} Bg7 {[%clk 00:03:06]} 5. e4 {[%clk
00:03:07]} O-O {[%clk 00:03:06]} {[%emt 00:00:02]} 6. Be2 {[%clk 00:03:08]} e5
{[%clk 00:03:05]} {[%emt 00:00:04]} 7. d5 {[%clk 00:03:09]} {[%emt 00:00:01]}
a5 {[%clk 00:02:57]} {[%emt 00:00:11]} 8. O-O {[%clk 00:03:09]} {[%emt
00:00:02]} Na6 {[%clk 00:02:58]} 9. Rb1 {[%clk 00:03:08]} {[%emt 00:00:03]} Nc5
{[%clk 00:02:52]} {[%emt 00:00:08]} 10. Nd2 {[%clk 00:03:05]} {[%emt 00:00:05]}
Ne8 {[%clk 00:02:44]} {[%emt 00:00:10]} 11. a3 {[%clk 00:03:06]} f5 {[%clk
00:02:43]} {[%emt 00:00:04]} 12. f3 {[%clk 00:03:07]} Nf6 {[%clk 00:02:26]}
{[%emt 00:00:18]} 13. b4 {[%clk 00:03:08]} {[%emt 00:00:01]} axb4 {[%clk
00:02:27]} {[%emt 00:00:01]} 14. axb4 {[%clk 00:03:09]} Ncd7 {[%clk 00:02:24]}
{[%emt 00:00:05]} 15. Nb3 {[%clk 00:03:08]} {[%emt 00:00:03]} Nh5 {[%clk
00:02:07]} {[%emt 00:00:19]} 16. Be3 {[%clk 00:03:08]} {[%emt 00:00:02]} Nf4
{[%clk 00:01:52]} {[%emt 00:00:18]} 17. c5 {[%clk 00:02:58]} {[%emt 00:00:12]}
Qg5 {[%clk 00:01:44]} {[%emt 00:00:10]} 18. Bxf4 {[%clk 00:02:37]} {[%emt
00:00:24]} exf4 {[%clk 00:01:44]} {[%emt 00:00:01]} 19. Nb5 {[%clk 00:02:28]}
{[%emt 00:00:11]} Qd8 {[%clk 00:01:26]} {[%emt 00:00:21]} 20. c6 {[%clk
00:02:17]} {[%emt 00:00:13]} bxc6 21. dxc6 {[%clk 00:02:17]} Nb6 {[%clk
00:01:16]} {[%emt 00:00:11]} 22. N3d4 {[%clk 00:02:07]} {[%emt 00:00:12]} fxe4
{[%clk 00:01:10]} {[%emt 00:00:08]} 23. fxe4 {[%clk 00:02:07]} {[%emt
00:00:02]} Kh8 {[%clk 00:00:55]} {[%emt 00:00:17]} 24. Qb3 {[%clk 00:02:07]}
{[%emt 00:00:02]} Qe7 {[%clk 00:00:56]} {[%emt 00:00:02]} 25. Bf3 {[%clk
00:02:04]} {[%emt 00:00:04]} Be5 {[%clk 00:00:56]} {[%emt 00:00:02]} 26. Ra1
{[%clk 00:01:48]} {[%emt 00:00:18]} Rxa1 {[%clk 00:00:54]} {[%emt 00:00:05]} 27.
Rxa1 {[%clk 00:01:50]} g5 {[%clk 00:00:54]} {[%emt 00:00:02]} 28. Ra7 {[%clk
00:01:48]} {[%emt 00:00:04]} Qg7 {[%clk 00:00:47]} {[%emt 00:00:09]} 29. Rxc7
{[%clk 00:01:44]} {[%emt 00:00:06]} Bxd4+ {[%clk 00:00:47]} {[%emt 00:00:01]}
30. Kf1 {[%clk 00:01:37]} {[%emt 00:00:09]} Qe5 {[%clk 00:00:48]} {[%emt
00:00:03]} 31. Qd3 {[%clk 00:01:13]} {[%emt 00:00:26]} Be6 {[%clk 00:00:43]}
{[%emt 00:00:07]} 32. Qxd4 {[%clk 00:01:09]} {[%emt 00:00:05]} Bc4+ {[%clk
00:00:42]} {[%emt 00:00:03]} 33. Be2 {[%clk 00:01:07]} {[%emt 00:00:04]} Bxe2+
{[%clk 00:00:32]} {[%emt 00:00:13]} 34. Kxe2 {[%clk 00:01:08]} {[%emt
00:00:01]} Qxd4 {[%clk 00:00:32]} {[%emt 00:00:01]} 35. Nxd4 {[%clk 00:01:09]}
Re8 {[%clk 00:00:29]} {[%emt 00:00:06]} 36. Kf3 {[%clk 00:01:07]} {[%emt
00:00:04]} Nc4 {[%clk 00:00:23]} {[%emt 00:00:07]} 37. Nb3 {[%clk 00:00:59]}
{[%emt 00:00:10]} h5 {[%clk 00:00:24]} {[%emt 00:00:02]} 38. h3 {[%clk
00:00:59]} {[%emt 00:00:02]} Ne5+ {[%clk 00:00:25]} 39. Ke2 {[%clk 00:00:56]}
{[%emt 00:00:06]} Nc4 {[%clk 00:00:26]} {[%emt 00:00:01]} 40. Kd3 {[%clk
00:00:55]} {[%emt 00:00:03]} Ne5+ {[%clk 00:00:25]} {[%emt 00:00:03]} 41. Kd4
{[%clk 00:00:53]} {[%emt 00:00:03]} f3 {[%clk 00:00:26]} {[%emt 00:00:01]} 42.
gxf3 {[%emt 00:00:03]} Nxf3+ 43. Ke3 {[%clk 00:00:52]} {[%emt 00:00:03]} Ne5
{[%clk 00:00:28]} {[%emt 00:00:01]} 44. b5 {[%clk 00:00:50]} {[%emt 00:00:04]}
Nc4+ {[%clk 00:00:29]} {[%emt 00:00:01]} 45. Kd4 {[%clk 00:00:49]} {[%emt
00:00:02]} Ne5 {[%clk 00:00:30]} {[%emt 00:00:01]} 46. b6 {[%clk 00:00:49]}
{[%emt 00:00:02]} Nf3+ {[%clk 00:00:29]} {[%emt 00:00:03]} 47. Ke3 {[%clk
00:00:50]} {[%emt 00:00:01]} g4 {[%clk 00:00:29]} {[%emt 00:00:02]} 48. hxg4
{[%emt 00:00:02]} hxg4 49. b7 {[%clk 00:00:50]} {[%emt 00:00:03]} Ne5 {[%clk
00:00:30]} {[%emt 00:00:02]} 50. Rc8 {[%clk 00:00:51]} {[%emt 00:00:01]} Nc4+
{[%clk 00:00:29]} {[%emt 00:00:03]} 51. Kd4 {[%clk 00:00:52]} 1-0